fUSD/lending_fUSD_20250606
["ID","MTS","AMOUNT","RATE_DAILY","PERIOD"]
[364633812,1749169847794,-496.74,0.00030164,7]
[364633813,1749169847803,-480.0,0.00030164,7]
[364633814,1749169847813,-151.0,0.00030164,7]
[364633815,1749169847823,-480.0,0.00030164,7]
[364633816,1749169847832,-480.0,0.00030164,7]
[364633817,1749169847842,-894.07,0.00030164,7]
[364633818,1749169847851,-3195.01,0.00030164,7]
[364633819,1749169847861,-858.65,0.00030164,7]
[364633820,1749169847871,-480.0,0.00030164,7]
[364633821,1749169847881,-482.86868252,0.00030164,7]
[364633822,1749169847891,-854.71989589,0.00030164,2]
[364633823,1749169847900,-150.0,0.00030164,7]
[364633824,1749169847910,-777.87,0.00030164,7]
[364633825,1749169847920,-480.0,0.00030164,7]
[364633826,1749169847930,-480.0,0.00030164,7]
[364633827,1749169847941,-480.0,0.00030164,7]
[364633828,1749169847951,-150.0,0.00030164,7]
[364633829,1749169847960,-150.0,0.00030164,7]
[364633830,1749169847970,-150.0,0.00030164,7]
[364633831,1749169847980,-150.0,0.00030164,7]
[364633832,1749169847990,-882.75,0.00030164,7]
[364633833,1749169848000,-480.0,0.00030164,5]
[364633834,1749169848009,-480.0,0.00030164,7]
[364633835,1749169848019,-480.0,0.00030164,7]
[364633836,1749169848030,-386.01243314,0.00030164,7]
[364633837,1749169848040,-151.0,0.00030164,7]
[364633838,1749169848050,-20765.5,0.00030164,7]
[364633839,1749169848060,-5143.42,0.00030164,7]
[364633840,1749169848070,-428.43084855,0.00030164,7]
[364633841,1749169848080,-480.0,0.00030164,7]
[364633842,1749169848090,-571.14,0.00030164,7]
[364633843,1749169848101,-151.0,0.00030164,7]
[364633844,1749169848111,-571.14,0.00030164,7]
[364633845,1749169848120,-480.0,0.00030164,7]
[364633846,1749169848131,-672.27,0.00030164,7]
[364633847,1749169848141,-480.0,0.00030164,7]
[364633848,1749169848151,-464.96070709,0.00030164,7]
[364633849,1749169848161,-480.0,0.00030164,7]
[364633850,1749169848171,-480.0,0.00030164,7]
[364633851,1749169848181,-628.58,0.00030164,7]
[364633852,1749169848192,-480.0,0.00030164,7]
[364633853,1749169848201,-480.0,0.00030164,7]
[364633854,1749169848211,-266.915365,0.00030164,7]
[364633855,1749169848220,-585.38,0.00030164,7]
[364633856,1749169848230,-484.99498679,0.00030164,7]
[364633857,1749169848241,-480.0,0.00030164,7]
[364633858,1749169848250,-318.18973338,0.00030164,7]
[364633859,1749169848260,-151.0,0.00030164,7]
[364633860,1749169848270,-2136.76,0.00030164,7]
[364633861,1749169848280,-487.60466884,0.00030164,7]
[364633862,1749169848291,-266.915365,0.00030164,7]
[364633863,1749169848302,-480.0,0.00030164,7]
[364633864,1749169848312,-968.97,0.00030164,7]
[364633865,1749169848322,-480.0,0.00030164,7]
[364633866,1749169848337,-1010.0,0.00030164,7]
[364633867,1749169848347,-844.65,0.00030164,7]
[364633868,1749169848357,-431.74571183,0.00030164,7]
[364633869,1749169848368,-480.0,0.00030164,2]
[364633870,1749169848378,-1526.53,0.00030164,7]
[364633871,1749169848388,-2074.53,0.00030164,7]
[364633872,1749169848398,-360.0,0.00030164,7]
[364633873,1749169848409,-1391.46,0.00030164,7]
[364633874,1749169848420,-480.0,0.00030164,7]
[364633875,1749169848431,-481.36,0.00030164,7]
[364633876,1749169848441,-480.0,0.00030164,7]
[364633877,1749169848452,-1144.75,0.00030164,7]
[364633878,1749169848463,-480.0,0.00030164,2]
[364633879,1749169848473,-2088.12,0.00030164,7]
[364633880,1749169848484,-1496.25,0.00030164,7]
[364633881,1749169848495,-480.0,0.00030164,7]
[364633882,1749169848505,-480.0,0.00030164,7]
[364633883,1749169848516,-2429.04,0.00030164,7]
[364633884,1749169848526,-486.84778779,0.00030164,7]
[364633885,1749169848537,-481.43440258,0.00030164,7]
[364633886,1749169848547,-480.0,0.00030164,7]
[364633887,1749169848558,-2148.42,0.00030164,7]
[364633888,1749169848568,-480.0,0.00030164,3]
[364633889,1749169848578,-480.0,0.00030164,7]
[364633890,1749169848588,-500.0,0.00030164,7]
[364633891,1749169848599,-480.0,0.00030164,7]
[364633892,1749169848609,-1006.19,0.00030164,7]
[364633893,1749169848619,-550.16,0.00030164,2]
[364633894,1749169848630,-480.0,0.00030164,7]
[364633895,1749169848641,-480.0,0.00030164,7]
[364633896,1749169848651,-480.0,0.00030164,7]
[364633897,1749169848660,-434.53788425,0.00030164,7]
[364633898,1749169848670,-4057.88,0.00030164,7]
[364633899,1749169848680,-75398.65,0.00030164,7]
[364633900,1749169848691,-831.38,0.00030164,7]
[364633901,1749169848702,-480.0,0.00030164,7]
[364633902,1749169848712,-480.0,0.00030164,7]
[364633903,1749169848722,-480.0,0.00030164,7]
[364633904,1749169848732,-460.0,0.00030164,7]
[364633905,1749169848742,-916.23,0.00030164,7]
[364633906,1749169848752,-1158.74,0.00030164,7]
[364633907,1749169848762,-1256.48,0.00030164,7]
[364633908,1749169848772,-480.0,0.00030164,7]
[364633909,1749169848782,-750.6,0.00030164,7]
[364633910,1749169848792,-480.0,0.00030164,7]
[364633911,1749169848801,-1384.3,0.00030164,7]
[364633912,1749169848811,-657.45,0.00030164,7]
[364633913,1749169848821,-480.0,0.00030164,7]
[364633914,1749169848831,-845.15,0.00030164,7]
[364633915,1749169848841,-480.0,0.00030164,7]
[364633916,1749169848851,-480.0,0.00030164,2]
[364633917,1749169848861,-480.0,0.00030164,7]
[364633918,1749169848871,-1850.13,0.00030164,7]
[364633919,1749169848881,-3678.84,0.00030164,7]
[364633920,1749169848890,-480.0,0.00030164,7]
[364633921,1749169848900,-151.0,0.00030164,7]
[364633922,1749169848909,-153.846549,0.00030164,7]
[364633923,1749169848919,-480.0,0.00030164,7]
[364633924,1749169848929,-480.0,0.00030164,7]
[364633925,1749169848939,-480.0,0.00030164,7]
[364633926,1749169848950,-1543.72,0.00030164,7]
[364633927,1749169848960,-480.0,0.00030164,7]
[364633928,1749169848971,-940.41,0.00030164,7]
[364633929,1749169848981,-480.0,0.00030164,7]
[364633930,1749169848991,-480.0,0.00030164,7]
[364633931,1749169849001,-151.0,0.00030164,7]
[364633932,1749169849011,-480.0,0.00030164,7]
[364633933,1749169849021,-598.75943543,0.00030164,7]
[364633934,1749169849031,-480.0,0.00030164,7]
[364633935,1749169849042,-480.0,0.00030164,7]
[364633936,1749169849052,-480.0,0.00030164,7]
[364633937,1749169849323,-480.0,0.00030164,7]
[364633938,1749169849335,-480.0,0.00030164,7]
[364633939,1749169849346,-480.0,0.00030164,7]
[364633940,1749169849356,-480.0,0.00030164,7]
[364633941,1749169849366,-480.0,0.00030164,7]
[364633942,1749169849375,-1155.60455,0.00030164,2]
[364633943,1749169849385,-2140.61,0.00030164,7]
[364633944,1749169849395,-884.63,0.00030164,7]
[364633945,1749169849404,-368.1526686,0.00030164,7]
[364633946,1749169849417,-480.0,0.00030164,7]
[364633947,1749169849428,-676.31,0.00030164,7]
[364633948,1749169849439,-480.0,0.00030164,7]
[364633949,1749169849449,-480.0,0.00030164,7]
[364633950,1749169849459,-506.25070193,0.00030164,7]
[364633951,1749169849469,-480.0,0.00030164,7]
[364633952,1749169849479,-4494.31,0.00030164,7]
[364633953,1749169849489,-480.0,0.00030164,7]
[364633954,1749169849499,-1236.81,0.00030164,7]
[364633955,1749169849508,-480.0,0.00030164,7]
[364633956,1749169849517,-480.0,0.00030164,7]
[364633957,1749169849527,-492.07,0.00030164,2]
[364633958,1749169849538,-500.0,0.00030173,5]
[364633959,1749169849548,-500.0,0.00030173,5]
[364633960,1749169849559,-1155.60456,0.0003019,2]
[364633961,1749169849569,-205.60041799,0.00030192,30]
[364633962,1749169849579,-666.0,0.00030199,10]
[364633963,1749169849588,-2033.33,0.000302,2]
[364633964,1749169849599,-1041.7,0.000302,2]
[364633965,1749169849608,-96253.35249045,0.000302,2]
[364633966,1749169850108,-25395.22800001,0.000302,2]
[364633967,1749169850519,-151.0,0.00030164,7]
[364633968,1749169850529,-480.0,0.00030164,7]
[364633969,1749169850538,-392.01306278,0.00030164,7]
[364633970,1749169850584,-87.98693722,0.00030164,7]
[364633971,1749169850594,-702.14,0.00030164,7]
[364633972,1749169850604,-484.97319337,0.00030164,7]
[364633973,1749169850613,-480.0,0.00030164,7]
[364633974,1749169850623,-480.0,0.00030164,7]
[364633975,1749169850632,-276083.78152262,0.000302,2]
[364633976,1749169850642,-125035.48,0.000302,7]
[364633977,1749169850652,-151.0,0.000302,7]
[364633978,1749169850662,-151.0,0.000302,7]
[364633979,1749169850672,-178.501279,0.000302,7]
[364633980,1749169850681,-178.501279,0.000302,7]
[364633981,1749169850693,-151.0,0.000302,7]
[364633982,1749169850703,-151.0,0.000302,7]
[364633983,1749169850712,-151.0,0.000302,7]
[364633984,1749169850722,-151.0,0.000302,7]
[364633985,1749169850732,-151.0,0.000302,7]
[364633986,1749169850742,-266.915365,0.000302,7]
[364633987,1749169850752,-151.0,0.000302,7]
[364633988,1749169850763,-266.915365,0.000302,7]
[364633989,1749169850773,-151.0,0.000302,7]
[364633990,1749169850782,-151.0,0.000302,7]
[364633991,1749169850792,-152.0,0.00030223,5]
[364633992,1749169850802,-150.0,0.00030279,2]
[364633993,1749169850811,-500.0,0.00030297,2]
[364633994,1749169850821,-500.0,0.00030297,7]
[364633995,1749169850831,-616.0,0.000303,2]
[364633996,1749169850840,-205.60041799,0.00030301,30]
[364633997,1749169850850,-1000.0,0.00030301,2]
[364633998,1749169850859,-500.0,0.00030306,7]
[364633999,1749169850869,-500.0,0.00030306,7]
[364634000,1749169850879,-500.0,0.00030306,7]
[364634001,1749169850888,-500.0,0.00030306,7]
[364634002,1749169850898,-571.14,0.00030306,7]
[364634003,1749169850907,-571.14,0.00030306,7]
[364634004,1749169850917,-571.14,0.00030306,7]
[364634005,1749169850927,-500.0,0.00030307,7]
[364634006,1749169850936,-571.14,0.00030307,7]
[364634007,1749169850945,-63395.33119342,0.00030307,2]
[364634008,1749169850955,-500.0,0.00030315,7]
[364634009,1749169850964,-500.0,0.00030315,7]
[364634010,1749169850973,-500.0,0.00030315,7]
[364634011,1749169850983,-500.0,0.00030315,7]
[364634012,1749169850992,-500.0,0.00030315,7]
[364634013,1749169851002,-500.0,0.00030315,7]
[364634014,1749169851011,-500.0,0.00030315,7]
[364634015,1749169851021,-500.0,0.00030315,7]
[364634016,1749169851030,-500.0,0.00030315,7]
[364634017,1749169851040,-500.0,0.00030315,7]
[364634018,1749169851049,-500.0,0.00030315,7]
[364634019,1749169851058,-500.0,0.00030315,7]
[364634020,1749169851068,-500.0,0.00030315,7]
[364634021,1749169851077,-500.0,0.00030315,7]
[364634022,1749169851087,-500.0,0.00030315,7]
[364634023,1749169851097,-500.0,0.00030315,7]
[364634024,1749169851107,-500.0,0.00030315,7]
[364634025,1749169851116,-500.0,0.00030315,7]
[364634026,1749169851125,-500.0,0.00030315,7]
[364634027,1749169851135,-500.0,0.00030315,7]
[364634028,1749169851145,-500.0,0.00030315,7]
[364634029,1749169851155,-500.0,0.00030315,7]
[364634030,1749169851164,-500.0,0.00030315,7]
[364634031,1749169851173,-240.8,0.00030315,7]
[364634032,1749169851183,-531.6,0.00030315,7]
[364634033,1749169851194,-500.0,0.00030316,7]
[364634034,1749169851204,-571.14,0.00030316,7]
[364634035,1749169851213,-500.0,0.00030327,2]
[364634036,1749169851222,-150.0,0.00030327,2]
[364634037,1749169851232,-500.0,0.00030327,2]
[364634038,1749169851242,-500.0,0.00030327,2]
[364634039,1749169851252,-500.0,0.00030327,2]
[364634040,1749169851261,-500.0,0.00030327,2]
[364634041,1749169851270,-554.58,0.00030327,2]
[364634042,1749169851280,-150.0,0.00030327,2]
[364634043,1749169851289,-500.0,0.00030327,7]
[364634044,1749169851299,-500.0,0.00030327,7]
[364634045,1749169851308,-500.0,0.00030327,7]
[364634046,1749169851317,-500.0,0.00030327,7]
[364634047,1749169851327,-500.0,0.00030327,7]
[364634048,1749169851338,-500.0,0.00030327,7]
[364634049,1749169851348,-500.0,0.00030327,7]
[364634050,1749169851357,-571.14,0.00030327,7]
[364634051,1749169851366,-571.14,0.00030327,7]
[364634052,1749169851375,-163.36928464,0.00030327,7]
[364634053,1749169851387,-1423.442674,0.00030328,7]
[364634054,1749169851465,-480.0,0.00030328,7]
[364634055,1749169851475,-1288.57938,0.00030328,7]
[364634056,1749169851485,-525.54,0.00030328,7]
[364634057,1749169851495,-480.0,0.00030328,7]
[364634058,1749169851504,-480.0,0.00030328,7]
[364634059,1749169851514,-480.0,0.00030328,7]
[364634060,1749169851524,-480.0,0.00030328,7]
[364634061,1749169851533,-480.0,0.00030328,7]
[364634062,1749169851542,-480.0,0.00030328,7]
[364634063,1749169851552,-480.0,0.00030328,7]
[364634064,1749169851561,-480.0,0.00030328,7]
[364634065,1749169851571,-480.0,0.00030328,7]
[364634066,1749169851580,-480.0,0.00030328,7]
[364634067,1749169851591,-480.0,0.00030328,7]
[364634068,1749169851602,-480.0,0.00030328,7]
[364634069,1749169851612,-480.0,0.00030328,7]
[364634070,1749169851621,-480.0,0.00030328,7]
[364634071,1749169851631,-480.0,0.00030328,7]
[364634072,1749169851640,-577.19,0.00030328,7]
[364634073,1749169851651,-480.0,0.00030328,7]
[364634074,1749169851661,-480.0,0.00030328,7]
[364634075,1749169851671,-480.0,0.00030328,7]
[364634076,1749169851681,-480.0,0.00030328,7]
[364634077,1749169851693,-480.0,0.00030328,7]
[364634078,1749169851703,-356.73054734,0.00030328,7]
[364634079,1749169851712,-480.0,0.00030328,7]
[364634080,1749169851722,-480.0,0.00030328,7]
[364634081,1749169851731,-480.0,0.00030328,7]
[364634082,1749169851740,-480.0,0.00030328,7]
[364634083,1749169851750,-480.0,0.00030328,7]
[364634084,1749169851759,-480.0,0.00030328,7]
[364634085,1749169851768,-480.0,0.00030328,7]
[364634086,1749169851778,-543.3,0.00030328,7]
[364634087,1749169851787,-480.0,0.00030328,7]
[364634088,1749169851796,-560.45,0.00030328,7]
[364634089,1749169851805,-480.0,0.00030328,7]
[364634090,1749169851814,-480.0,0.00030328,7]
[364634091,1749169851824,-480.0,0.00030328,7]
[364634092,1749169851833,-480.0,0.00030328,7]
[364634093,1749169851842,-480.0,0.00030328,7]
[364634094,1749169851851,-480.0,0.00030328,7]
[364634095,1749169851861,-480.0,0.00030328,7]
[364634096,1749169851870,-595.48,0.00030328,7]
[364634097,1749169851881,-480.0,0.00030328,7]
[364634098,1749169851890,-480.0,0.00030328,7]
[364634099,1749169851900,-480.0,0.00030328,7]
[364634100,1749169851909,-480.0,0.00030328,7]
[364634101,1749169851918,-624.38,0.00030328,30]
[364634102,1749169851927,-480.0,0.00030328,7]
[364634103,1749169851937,-628.88296376,0.00030328,7]
[364634104,1749169851947,-480.0,0.00030328,7]
[364634105,1749169851956,-564.7,0.00030328,7]
[364634106,1749169851965,-668.56,0.00030328,7]
[364634107,1749169851974,-426.42,0.00030328,7]
[364634108,1749169851984,-480.0,0.00030328,7]
[364634109,1749169851993,-602.09,0.00030328,7]
[364634110,1749169852003,-480.0,0.00030328,7]
[364634111,1749169852012,-480.0,0.00030328,7]
[364634112,1749169852022,-480.0,0.00030328,7]
[364634113,1749169852031,-480.0,0.00030328,7]
[364634114,1749169852040,-480.0,0.00030328,7]
[364634115,1749169852050,-521.44,0.00030328,7]
[364634116,1749169852059,-480.0,0.00030328,7]
[364634117,1749169852068,-480.0,0.00030328,7]
[364634118,1749169852078,-480.0,0.00030328,7]
[364634119,1749169852088,-480.0,0.00030328,7]
[364634120,1749169852097,-1135.23,0.00030328,7]
[364634121,1749169852106,-480.0,0.00030328,7]
[364634122,1749169852115,-1566.98,0.00030328,7]
[364634123,1749169852124,-480.0,0.00030328,7]
[364634124,1749169852134,-850.57,0.00030328,7]
[364634125,1749169852143,-480.0,0.00030328,7]
[364634126,1749169852152,-480.0,0.00030328,7]
[364634127,1749169852162,-731.2,0.00030328,7]
[364634128,1749169852171,-1000.98,0.00030328,7]
[364634129,1749169852181,-791.42,0.00030328,7]
[364634130,1749169852191,-647.48,0.00030328,7]
[364634131,1749169852200,-669.94,0.00030328,7]
[364634132,1749169852209,-1235.47,0.00030328,7]
[364634133,1749169852219,-785.34,0.00030328,7]
[364634134,1749169852228,-480.0,0.00030328,7]
[364634135,1749169852236,-519.02,0.00030328,7]
[364634136,1749169852246,-1309.06,0.00030328,7]
[364634137,1749169852255,-921.0,0.00030328,7]
[364634138,1749169852264,-1017.54,0.00030328,7]
[364634139,1749169852273,-480.0,0.00030328,7]
[364634140,1749169852283,-1318.19,0.00030328,7]
[364634141,1749169852293,-480.0,0.00030328,7]
[364634142,1749169852303,-642.93,0.00030328,7]
[364634143,1749169852313,-480.0,0.00030328,7]
[364634144,1749169852322,-571.7,0.00030328,7]
[364634145,1749169852332,-480.0,0.00030328,7]
[364634146,1749169852345,-638.63,0.00030328,7]
[364634147,1749169852354,-480.0,0.00030328,7]
[364634148,1749169852364,-648.12,0.00030328,7]
[364634149,1749169852374,-480.0,0.00030328,7]
[364634150,1749169852384,-480.0,0.00030328,7]
[364634151,1749169852393,-934.99,0.00030328,7]
[364634152,1749169852403,-480.0,0.00030328,7]
[364634153,1749169852413,-454.54800131,0.00030328,7]
[364634154,1749169852422,-480.0,0.00030328,7]
[364634155,1749169852431,-480.0,0.00030328,7]
[364634156,1749169852441,-480.0,0.00030328,7]
[364634157,1749169852450,-480.0,0.00030328,7]
[364634158,1749169852459,-646.29,0.00030328,7]
[364634159,1749169852469,-515.87,0.00030328,7]
[364634160,1749169852478,-480.0,0.00030328,7]
[364634161,1749169852488,-480.0,0.00030328,7]
[364634162,1749169852497,-480.0,0.00030328,7]
[364634163,1749169852507,-480.0,0.00030328,7]
[364634164,1749169852516,-604.81,0.00030328,7]
[364634165,1749169852526,-480.0,0.00030328,7]
[364634166,1749169852535,-480.0,0.00030328,7]
[364634167,1749169852545,-480.0,0.00030328,7]
[364634168,1749169852554,-480.0,0.00030328,7]
[364634169,1749169852563,-480.0,0.00030328,7]
[364634170,1749169852573,-977.06,0.00030328,7]
[364634171,1749169852582,-480.0,0.00030328,7]
[364634172,1749169852592,-598.09,0.00030328,7]
[364634173,1749169852602,-542.37,0.00030328,7]
[364634174,1749169852611,-984.46,0.00030328,7]
[364634175,1749169852621,-609.89,0.00030328,7]
[364634176,1749169852630,-480.0,0.00030328,7]
[364634177,1749169852640,-480.0,0.00030328,7]
[364634178,1749169852650,-1197.76,0.00030328,7]
[364634179,1749169852660,-480.0,0.00030328,7]
[364634180,1749169852669,-480.0,0.00030328,7]
[364634181,1749169852679,-480.0,0.00030328,7]
[364634182,1749169852689,-480.0,0.00030328,7]
[364634183,1749169852700,-480.0,0.00030328,7]
[364634184,1749169852710,-633.04,0.00030328,7]
[364634185,1749169852720,-480.0,0.00030328,7]
[364634186,1749169852729,-480.0,0.00030328,7]
[364634187,1749169852738,-480.0,0.00030328,7]
[364634188,1749169852748,-801.52,0.00030328,7]
[364634189,1749169852757,-480.0,0.00030328,7]
[364634190,1749169852766,-480.0,0.00030328,7]
[364634191,1749169852776,-480.0,0.00030328,7]
[364634192,1749169852785,-998.49,0.00030328,7]
[364634193,1749169852794,-480.0,0.00030328,7]
[364634194,1749169852804,-480.0,0.00030328,7]
[364634195,1749169852814,-480.0,0.00030328,7]
[364634196,1749169852824,-480.0,0.00030328,7]
[364634197,1749169852833,-751.3,0.00030328,7]
[364634198,1749169852842,-480.0,0.00030328,7]
[364634199,1749169852852,-480.0,0.00030328,7]
[364634200,1749169852861,-976.73,0.00030328,7]
[364634201,1749169852870,-480.0,0.00030328,7]
[364634202,1749169852880,-480.0,0.00030328,7]
[364634203,1749169852889,-480.0,0.00030328,7]
[364634204,1749169852898,-560.65,0.00030328,7]
[364634205,1749169852907,-480.0,0.00030328,7]
[364634206,1749169852917,-624.38,0.00030328,7]
[364634207,1749169852926,-567.73,0.00030328,7]
[364634208,1749169852935,-1477.61,0.00030328,7]
[364634209,1749169852946,-480.0,0.00030328,7]
[364634210,1749169852955,-802.74,0.00030328,7]
[364634211,1749169852964,-480.0,0.00030328,7]
[364634212,1749169852974,-1744.01,0.00030328,7]
[364634213,1749169852983,-763.22,0.00030328,7]
[364634214,1749169852993,-538.96,0.00030328,7]
[364634215,1749169853002,-480.0,0.00030328,7]
[364634216,1749169853011,-480.0,0.00030328,7]
[364634217,1749169853021,-974.45,0.00030328,7]
[364634218,1749169853030,-824.48,0.00030328,7]
[364634219,1749169853039,-480.0,0.00030328,7]
[364634220,1749169853049,-305.08,0.00030328,7]
[364634221,1749169853058,-480.0,0.00030328,7]
[364634222,1749169853068,-965.87,0.00030328,7]
[364634223,1749169853077,-480.0,0.00030328,7]
[364634224,1749169853087,-480.0,0.00030328,7]
[364634225,1749169853096,-480.0,0.00030328,7]
[364634226,1749169853105,-643.57,0.00030328,7]
[364634227,1749169853114,-895.07,0.00030328,7]
[364634228,1749169853124,-387.63,0.00030328,7]
[364634229,1749169853133,-1530.67,0.00030328,7]
[364634230,1749169853142,-630.12,0.00030328,7]
[364634231,1749169853151,-1015.68,0.00030328,7]
[364634232,1749169853160,-480.0,0.00030328,7]
[364634233,1749169853169,-4473.44,0.00030328,7]
[364634234,1749169853179,-997.24,0.00030328,7]
[364634235,1749169853188,-611.76,0.00030328,7]
[364634236,1749169853197,-714.32,0.00030328,7]
[364634237,1749169853207,-1465.75,0.00030328,7]
[364634238,1749169853216,-792.82,0.00030328,7]
[364634239,1749169853225,-151.0,0.00030328,7]
[364634240,1749169853234,-239.187392,0.00030328,7]
[364634241,1749169853244,-5664.36,0.00030328,7]
[364634242,1749169853253,-480.0,0.00030328,7]
[364634243,1749169853263,-1067.54,0.00030328,7]
[364634244,1749169853272,-1841.39,0.00030328,7]
[364634245,1749169853282,-480.0,0.00030328,7]
[364634246,1749169853292,-694.91,0.00030328,7]
[364634247,1749169853301,-480.0,0.00030328,7]
[364634248,1749169853310,-634.95,0.00030328,7]
[364634249,1749169853319,-480.0,0.00030328,7]
[364634250,1749169853330,-5122.53,0.00030328,7]
[364634251,1749169853348,-10624.81,0.00030328,7]
[364634252,1749169853358,-480.0,0.00030328,7]
[364634253,1749169853367,-1930.66,0.00030328,7]
[364634254,1749169853376,-480.0,0.00030328,7]
[364634255,1749169853386,-994.09,0.00030328,7]
[364634256,1749169853396,-480.0,0.00030328,7]
[364634257,1749169853406,-1762.93,0.00030328,7]
[364634258,1749169853416,-365.29088509,0.00030328,7]
[364634259,1749169853426,-300.0,0.00030328,7]
[364634260,1749169853436,-3222.49,0.00030328,7]
[364634261,1749169853447,-678.81,0.00030328,7]
[364634262,1749169853456,-480.0,0.00030328,7]
[364634263,1749169853466,-480.0,0.00030328,7]
[364634264,1749169853475,-841.12,0.00030328,7]
[364634265,1749169853485,-1808.93,0.00030328,7]
[364634266,1749169853495,-480.0,0.00030328,7]
[364634267,1749169853505,-2980.01,0.00030328,7]
[364634268,1749169853515,-912.41,0.00030328,7]
[364634269,1749169853525,-480.0,0.00030328,7]
[364634270,1749169853534,-1568.54,0.00030328,7]
[364634271,1749169853543,-499.22,0.00030328,7]
[364634272,1749169853552,-480.0,0.00030328,7]
[364634273,1749169853562,-838.35,0.00030328,7]
[364634274,1749169853572,-726.16,0.00030328,7]
[364634275,1749169853581,-252.968101,0.00030328,7]
[364634276,1749169853591,-480.0,0.00030328,7]
[364634277,1749169853600,-427.03412895,0.00030328,7]
[364634278,1749169853609,-480.0,0.00030328,7]
[364634279,1749169853620,-480.0,0.00030328,7]
[364634280,1749169853629,-480.0,0.00030328,7]
[364634281,1749169853640,-480.0,0.00030328,7]
[364634282,1749169853651,-1969.03,0.00030328,7]
[364634283,1749169853661,-8804.99,0.00030328,7]
[364634284,1749169853671,-2057.51,0.00030328,7]
[364634285,1749169853680,-480.0,0.00030328,7]
[364634286,1749169853690,-939.86,0.00030328,7]
[364634287,1749169853699,-480.0,0.00030328,7]
[364634288,1749169853709,-480.0,0.00030328,7]
[364634289,1749169853720,-482.38,0.00030328,7]
[364634290,1749169853730,-480.0,0.00030328,7]
[364634291,1749169853740,-483.57,0.00030328,7]
[364634292,1749169853751,-480.0,0.00030328,7]
[364634293,1749169853759,-4422.6,0.00030328,7]
[364634294,1749169853768,-480.0,0.00030328,7]
[364634295,1749169853778,-480.0,0.00030328,7]
[364634296,1749169853789,-483.35347419,0.00030328,7]
[364634297,1749169853798,-1211.33,0.00030328,7]
[364634298,1749169853807,-480.0,0.00030328,7]
[364634299,1749169853816,-155.912852,0.00030328,7]
[364634300,1749169853826,-1514.33,0.00030328,7]
[364634301,1749169853835,-3546.61,0.00030328,7]
[364634302,1749169853844,-1699.38,0.00030328,7]
[364634303,1749169853853,-695.05,0.00030328,7]
[364634304,1749169853862,-480.0,0.00030328,7]
[364634305,1749169853871,-480.0,0.00030328,7]
[364634306,1749169853881,-1000.0,0.00030328,7]
[364634307,1749169853890,-480.0,0.00030328,7]
[364634308,1749169853899,-151.0,0.00030328,7]
[364634309,1749169853908,-1292.48,0.00030328,7]
[364634310,1749169853918,-480.0,0.00030328,7]
[364634311,1749169853927,-1270.03,0.00030328,2]